bitfinex-derivatives/quotes_BTCF0:USTF0_20250129
["timestamp","ask_amount","ask_price","bid_price","bid_amount"]
[1738151429229,0.86848926,102660.0,102650.0,0.20337901]
[1738151430231,1.01438306,102660.0,102650.0,0.20337901]
[1738151432631,0.94758306,102660.0,102650.0,0.20337901]
[1738151432832,0.80168926,102660.0,102650.0,0.20337901]
[1738151435435,0.8892793,102660.0,102650.0,0.20337901]
[1738151438941,0.80168926,102660.0,102650.0,0.20337901]
[1738151448440,0.94758306,102660.0,102650.0,0.20337901]
[1738151450738,0.80168926,102660.0,102650.0,0.20337901]
[1738151453750,0.94758306,102660.0,102650.0,0.20337901]
[1738151460551,0.96706484,102660.0,102650.0,0.20337901]
[1738151463358,0.96706484,102660.0,102650.0,0.2415038]
[1738151469970,0.96706484,102660.0,102650.0,0.20337901]
[1738151470269,0.96706484,102660.0,102650.0,0.24151181]
[1738151471267,0.96706484,102660.0,102650.0,0.20337901]
[1738151471568,0.96706484,102660.0,102650.0,0.24151181]
[1738151473569,0.96706484,102660.0,102650.0,0.20337901]
[1738151477274,0.82117104,102660.0,102650.0,0.20337901]
[1738151482475,2.32117104,102660.0,102650.0,0.20337901]
[1738151484282,2.32117104,102660.0,102650.0,0.24148981]
[1738151486977,0.82117104,102660.0,102650.0,0.24148981]
[1738151487667,0.90886594,102660.0,102650.0,0.24148981]
[1738151503985,0.96860806,102660.0,102650.0,0.20692981]
[1738151504287,0.96860806,102660.0,102650.0,0.16881901]
[1738151504790,0.90886594,102660.0,102650.0,0.16881901]
[1738151506287,0.96706484,102660.0,102650.0,0.16881901]
[1738151510594,0.96706484,102660.0,102650.0,0.09000001]
[1738151510786,1.02680696,102660.0,102650.0,0.09000001]
[1738151519197,1.02680696,102660.0,102650.0,0.02026001]
[1738151519399,1.02680696,102660.0,102640.0,0.32014613]
[1738151519400,0.194924,102650.0,102640.0,0.32014613]
[1738151519603,0.85320623,102650.0,102640.0,0.51830782]
[1738151520694,0.85320623,102650.0,102640.0,0.48014613]
[1738151521404,0.85420623,102650.0,102640.0,0.48014613]
[1738151521606,0.97112724,102650.0,102640.0,0.48014613]
[1738151523997,0.97112724,102650.0,102640.0,0.45734665]
[1738151524193,0.97102925,102650.0,102640.0,0.45734665]
[1738151524907,0.97102925,102650.0,102640.0,0.44155665]
[1738151525106,0.97102925,102650.0,102640.0,0.44255665]
[1738151525315,1.11692305,102650.0,102640.0,0.44255665]
[1738151525518,1.11592305,102650.0,102640.0,0.44455665]
[1738151526514,1.11603238,102650.0,102640.0,0.44455665]
[1738151526815,1.11592305,102650.0,102640.0,0.44455665]
[1738151527220,1.17566517,102650.0,102640.0,0.41004665]
[1738151529813,1.17574332,102650.0,102640.0,0.41004665]
[1738151530012,1.17566517,102650.0,102640.0,0.39212595]
[1738151530420,1.17566517,102650.0,102640.0,0.36844097]
[1738151531422,1.17566517,102650.0,102640.0,0.34891597]
[1738151531620,1.17666517,102650.0,102640.0,0.34691597]
[1738151532516,2.67666517,102650.0,102640.0,0.34691597]
[1738151532716,2.67678823,102650.0,102640.0,0.34691597]
[1738151533019,2.67666517,102650.0,102640.0,0.34691597]
[1738151533920,2.67676061,102650.0,102640.0,0.34691597]
[1738151534119,2.67666517,102650.0,102640.0,0.34691597]
[1738151534828,2.57922784,102650.0,102640.0,0.34691597]
[1738151535218,2.57934633,102650.0,102640.0,0.34691597]
[1738151535524,2.57922784,102650.0,102640.0,0.34691597]
[1738151536023,2.5793441,102650.0,102640.0,0.34691597]
[1738151536223,2.57922784,102650.0,102640.0,0.34691597]
[1738151537724,2.5793428,102650.0,102640.0,0.34691597]
[1738151537927,2.57922784,102650.0,102640.0,0.34691597]
[1738151538526,2.57922784,102650.0,102640.0,0.31371597]
[1738151539618,2.57922784,102650.0,102640.0,0.04454373]
[1738151542018,2.57922784,102650.0,102630.0,0.1200974]
[1738151542019,0.194943,102640.0,102630.0,0.01957918]
[1738151542334,0.65540436,102640.0,102610.0,0.18076145]
[1738151542631,0.97632312,102620.0,102610.0,0.37076145]
[1738151542930,0.97640656,102620.0,102610.0,0.19146145]
[1738151543625,1.0958908,102620.0,102610.0,0.19146145]
[1738151544733,1.0958908,102620.0,102610.0,0.19]
[1738151544927,1.0998908,102620.0,102610.0,0.19]
[1738151545131,1.1008908,102620.0,102610.0,0.19]
[1738151545726,1.0998908,102620.0,102610.0,0.19]
[1738151545923,1.10941707,102620.0,102610.0,0.19]
[1738151546118,1.10541707,102620.0,102610.0,0.193]
[1738151547024,1.04567495,102620.0,102610.0,0.193]
[1738151547628,0.98593283,102620.0,102610.0,0.57034212]
[1738151547920,0.51766781,102620.0,102610.0,0.57034212]
[1738151548325,0.45792569,102620.0,102610.0,0.57034212]
[1738151548521,0.09712569,102620.0,102610.0,0.57034212]
[1738151548935,0.09712569,102620.0,102610.0,0.6083917]
[1738151549231,0.35184881,102620.0,102610.0,0.6083917]
[1738151550921,0.00960971,102620.0,102610.0,0.9691917]
[1738151551123,0.19511713,102630.0,102620.0,0.194981]
[1738151551332,0.19511713,102630.0,102620.0,0.49322312]
[1738151551543,0.25485925,102630.0,102620.0,0.49322312]
[1738151552036,0.25495797,102630.0,102620.0,0.49322312]
[1738151552932,0.25495797,102630.0,102620.0,0.5312863]
[1738151553633,0.19521585,102630.0,102620.0,0.5312863]
[1738151553836,0.19621585,102630.0,102620.0,0.5312863]
[1738151555131,0.19621585,102630.0,102620.0,0.8920863]
[1738151555435,0.26578763,102630.0,102620.0,0.8920863]
[1738151556528,0.26578763,102630.0,102620.0,0.83234418]
[1738151556729,0.68632975,102630.0,102620.0,0.27656318]
[1738151557039,0.68632975,102630.0,102620.0,0.18]
[1738151557237,0.74572975,102630.0,102620.0,0.18]
[1738151558436,2.24572975,102630.0,102620.0,0.18]
[1738151558636,2.30873271,102630.0,102620.0,0.18]
[1738151558935,0.80873271,102630.0,102620.0,0.18]
[1738151559536,2.30873271,102630.0,102620.0,0.18]
[1738151560339,2.15808911,102630.0,102620.0,0.18]
[1738151560534,0.37187451,102630.0,102620.0,0.555481]
[1738151560935,0.46311811,102630.0,102620.0,0.555481]
[1738151561337,0.65808011,102630.0,102620.0,0.555481]
[1738151561642,0.86228406,102630.0,102620.0,0.555481]
[1738151562231,0.66732206,102630.0,102620.0,0.555481]
[1738151562446,0.21527846,102630.0,102620.0,1.0075246]
[1738151562839,0.21527846,102630.0,102620.0,1.04558658]
[1738151564840,0.00124485,102630.0,102620.0,1.04558658]
[1738151568645,0.19620685,102630.0,102620.0,1.04558658]
[1738151569144,0.19620685,102630.0,102620.0,0.95434298]
[1738151571747,0.19620685,102630.0,102620.0,1.04558658]
[1738151574143,0.00124485,102630.0,102620.0,1.04558658]
[1738151581345,0.00124485,102630.0,102620.0,0.92708658]
[1738151588556,0.00124485,102630.0,102620.0,0.95551252]
[1738151591356,0.00124485,102630.0,102620.0,0.98551252]
[1738151592958,0.00124485,102630.0,102620.0,0.92567775]
[1738151594157,0.00124485,102630.0,102620.0,0.98551252]
[1738151594946,0.00124485,102630.0,102620.0,0.96551252]
[1738151599161,0.00124485,102630.0,102620.0,0.26097229]
[1738151599364,0.36204485,102630.0,102620.0,0.45595329]
[1738151600962,0.55700685,102630.0,102620.0,0.44481577]
[1738151601261,0.61780685,102630.0,102620.0,0.44481577]
[1738151607654,0.42284485,102630.0,102620.0,0.44481577]
[1738151628282,0.06204485,102630.0,102620.0,0.44481577]
[1738151628682,0.42284485,102630.0,102620.0,0.44481577]
[1738151629076,0.06204485,102630.0,102620.0,0.44481577]
[1738151629782,0.42284485,102630.0,102620.0,0.44481577]
[1738151631084,0.42284485,102630.0,102620.0,0.48263841]
[1738151632387,0.61780685,102630.0,102620.0,0.48263841]
[1738151636088,0.61780685,102630.0,102620.0,0.42280364]
[1738151636289,0.61780685,102630.0,102620.0,0.48263841]
[1738151640189,0.67764162,102630.0,102620.0,0.42280364]
[1738151641788,0.67764162,102630.0,102620.0,0.48263841]
[1738151642094,0.61780685,102630.0,102620.0,0.48263841]
[1738151653998,0.67764162,102630.0,102620.0,0.42280364]
[1738151680405,0.73747639,102630.0,102620.0,0.22782264]
[1738151680804,0.67764162,102630.0,102620.0,0.22782264]
[1738151681210,2.17764162,102630.0,102620.0,0.22782264]
[1738151681708,0.67764162,102630.0,102620.0,0.22782264]
[1738151684913,0.61780685,102630.0,102620.0,0.48263841]
[1738151685113,0.42284485,102630.0,102620.0,0.48263841]
[1738151685502,0.51036083,102630.0,102620.0,0.48263841]
[1738151687013,0.51036083,102630.0,102620.0,0.60573841]
[1738151687912,0.51036083,102630.0,102620.0,0.66557318]
[1738151688615,0.42284485,102630.0,102620.0,0.66557318]
[1738151690017,0.42284485,102630.0,102620.0,0.60573841]
[1738151695811,0.42284485,102630.0,102620.0,0.66557318]
[1738151696517,0.42284485,102630.0,102620.0,0.60573841]
[1738151698929,0.42284485,102630.0,102620.0,0.66557318]
[1738151699122,0.42284485,102630.0,102620.0,0.60573841]
[1738151700322,0.42284485,102630.0,102620.0,0.54583841]
[1738151705533,0.42284485,102630.0,102620.0,0.48263841]
[1738151729655,0.06204485,102630.0,102620.0,0.48263841]
[1738151730350,0.42284485,102630.0,102620.0,0.48263841]
[1738151748770,0.42284485,102630.0,102620.0,0.42280364]
[1738151751279,0.42284485,102630.0,102620.0,0.48263841]
[1738151754682,0.42284485,102630.0,102620.0,0.42280364]
[1738151755683,0.42284485,102630.0,102620.0,0.48263841]
[1738151762281,0.42284485,102630.0,102620.0,0.54247318]
[1738151762487,0.5744403,102640.0,102620.0,1.11208582]
[1738151762488,0.27347507,102640.0,102620.0,1.11208582]
[1738151762784,0.28206545,102650.0,102640.0,0.194943]
[1738151763091,0.48826486,102650.0,102640.0,0.84340041]
[1738151763289,0.29334086,102650.0,102640.0,0.90323518]
[1738151763475,0.29346077,102650.0,102640.0,0.90323518]
[1738151763674,0.29346077,102650.0,102640.0,0.84340041]
[1738151764282,0.48838477,102650.0,102640.0,0.84340041]
[1738151764481,0.54821954,102650.0,102640.0,0.84340041]
[1738151764885,0.225803,102650.0,102640.0,0.84340041]
[1738151765495,0.226803,102650.0,102640.0,0.84340041]
[1738151765792,0.289003,102650.0,102640.0,0.84340041]
[1738151766093,0.406303,102650.0,102640.0,0.84340041]
[1738151767987,0.42578668,102650.0,102640.0,0.84340041]
[1738151768992,0.78658668,102650.0,102640.0,0.15902541]
[1738151769597,0.78658668,102650.0,102640.0,0.35396841]
[1738151772700,0.78658668,102650.0,102640.0,0.42856841]
[1738151774302,0.78658668,102650.0,102640.0,0.48840318]
[1738151774698,0.78658668,102650.0,102640.0,0.42856841]
[1738151775098,0.59166268,102650.0,102640.0,0.48840318]
[1738151775397,0.04008727,102650.0,102640.0,0.58582633]
[1738151775592,0.04008727,102650.0,102640.0,0.63382633]
[1738151775788,0.04008727,102650.0,102640.0,0.64939156]
[1738151776398,0.04008727,102650.0,102640.0,0.70922633]
[1738151776904,0.04008727,102650.0,102640.0,0.35396841]
[1738151776905,0.65564604,102650.0,102640.0,0.35396841]
[1738151777109,0.83034604,102650.0,102640.0,0.37073364]
[1738151778098,0.83034604,102650.0,102640.0,0.43056841]
[1738151778298,0.83034604,102650.0,102640.0,0.37073364]
[1738151779406,0.83034604,102650.0,102640.0,0.29413364]
[1738151779705,0.83034604,102650.0,102640.0,0.09919064]
[1738151780201,0.89018081,102650.0,102640.0,0.09919064]
[1738151780398,0.89018081,102650.0,102640.0,0.08]
[1738151781196,0.194943,102640.0,102630.0,0.30014613]
[1738151781396,0.61557777,102640.0,102630.0,0.48252623]
[1738151782494,0.61557777,102640.0,102630.0,0.48352623]
[1738151782702,0.61557777,102640.0,102630.0,0.48652623]
[1738151788003,0.61557777,102640.0,102630.0,0.42669146]
[1738151788605,0.62728184,102640.0,102630.0,0.42669146]
[1738151790005,0.64676742,102640.0,102630.0,0.42669146]
[1738151791400,0.58693265,102640.0,102630.0,0.48652623]
[1738151791706,0.64676742,102640.0,102630.0,0.42669146]
[1738151791909,0.64676742,102640.0,102630.0,0.48652623]
[1738151792202,0.28596742,102640.0,102630.0,0.48652623]
[1738151792409,0.64676742,102640.0,102630.0,0.48652623]
[1738151793000,0.58693265,102640.0,102630.0,0.48652623]
[1738151793506,0.38028558,102640.0,102630.0,0.48652623]
[1738151797001,0.69489812,102640.0,102630.0,0.42669146]
[1738151797714,0.63506335,102640.0,102630.0,0.42669146]
[1738151797906,0.69489812,102640.0,102630.0,0.42669146]
[1738151798106,0.63506335,102640.0,102630.0,0.42669146]
[1738151801703,0.69489812,102640.0,102630.0,0.42669146]
[1738151805315,0.69489812,102640.0,102630.0,0.38910813]
[1738151805706,0.3608,102630.0,102600.0,0.10146173]
[1738151805907,1.03626954,102610.0,102600.0,0.1]
[1738151806106,2.59610431,102610.0,102600.0,0.01851471]
[1738151806308,0.195019,102600.0,102590.0,0.56619413]
[1738151806508,0.54030431,102600.0,102580.0,0.63861154]
[1738151806709,0.555838,102590.0,102580.0,0.60455272]
[1738151807211,0.555838,102590.0,102560.0,0.30321336]
[1738151807212,0.195076,102570.0,102560.0,0.30321336]
[1738151807421,1.09943533,102570.0,102560.0,0.30321336]
[1738151808515,0.90435933,102570.0,102550.0,0.5241363]
[1738151808710,0.64721414,102560.0,102550.0,0.5241363]
[1738151810917,0.65129855,102560.0,102550.0,0.5241363]
[1738151811421,0.65329855,102560.0,102550.0,0.5241363]
[1738151811918,0.65329855,102560.0,102530.0,0.19661093]
[1738151811919,0.195133,102540.0,102530.0,0.19661093]
[1738151812216,0.916733,102540.0,102530.0,0.40661093]
[1738151812417,1.00805214,102540.0,102530.0,0.40661093]
[1738151812927,0.916733,102540.0,102530.0,0.40661093]
[1738151813218,0.916733,102540.0,102530.0,0.40761093]
[1738151813425,1.00805214,102540.0,102530.0,0.40761093]
[1738151814212,1.00805214,102540.0,102530.0,0.40961093]
[1738151816614,0.916733,102540.0,102530.0,0.40961093]
[1738151818708,0.92781387,102540.0,102530.0,0.40961093]
[1738151820720,0.7216,102540.0,102530.0,0.40861093]
[1738151820918,0.55607013,102550.0,102530.0,0.40861093]
[1738151821120,0.55607013,102550.0,102540.0,0.195133]
[1738151821316,0.64738927,102550.0,102540.0,0.385133]
[1738151822119,0.55607013,102550.0,102540.0,0.385133]
[1738151822421,0.36494613,102550.0,102540.0,0.385133]
[1738151822724,0.65137927,102550.0,102540.0,0.385133]
[1738151822922,0.65137927,102550.0,102540.0,0.19]
[1738151823124,0.74281741,102550.0,102540.0,0.19]
[1738151823328,0.70959827,102550.0,102540.0,0.19]
[1738151824121,0.71159827,102550.0,102540.0,0.19]
[1738151824714,0.70959827,102550.0,102530.0,0.32]
[1738151824920,0.195152,102530.0,102520.0,0.55536]
[1738151825115,0.555952,102530.0,102520.0,0.56536]
[1738151825619,0.3608,102540.0,102530.0,0.195152]
[1738151825824,0.3608,102540.0,102530.0,0.47647114]
[1738151826122,0.3608,102540.0,102530.0,0.28131914]
[1738151826322,0.3608,102540.0,102530.0,0.47647114]
[1738151826524,0.55618813,102550.0,102540.0,0.195133]
[1738151826525,0.36106513,102550.0,102540.0,0.195133]
[1738151826726,0.00026513,102550.0,102540.0,0.48645214]
[1738151826916,0.81846077,102570.0,102560.0,0.195095]
[1738151827113,0.81846077,102570.0,102560.0,0.48641414]
[1738151827114,0.26258177,102570.0,102560.0,0.48641414]
[1738151827519,0.26258177,102570.0,102560.0,0.395095]
[1738151828024,0.62349099,102570.0,102560.0,0.395095]
[1738151828321,0.62349099,102570.0,102560.0,0.48641414]
[1738151828719,0.00110922,102570.0,102560.0,0.48641414]
[1738151828915,0.00110922,102570.0,102560.0,0.395095]
[1738151829634,0.00210922,102570.0,102560.0,0.395095]
[1738151829932,0.00210922,102570.0,102560.0,0.516995]
[1738151830120,0.00210922,102570.0,102560.0,0.573395]
[1738151830322,0.00110922,102570.0,102560.0,0.573395]
[1738151830732,0.00010922,102570.0,102560.0,0.573395]
[1738151830929,0.00110922,102570.0,102560.0,0.573395]
[1738151831130,0.00110922,102570.0,102560.0,0.66471414]
[1738151832135,0.00110922,102570.0,102560.0,0.573395]
[1738151833336,0.00110922,102570.0,102560.0,0.3783]
[1738151833535,0.7396235,102570.0,102560.0,0.2564]
[1738151833835,0.64830436,102570.0,102560.0,0.2564]
[1738151834435,2.14830436,102570.0,102560.0,0.2564]
[1738151834827,2.14730436,102570.0,102560.0,0.2564]
[1738151835135,0.64730436,102570.0,102560.0,0.2564]
[1738151835927,0.65130436,102570.0,102560.0,0.2564]
[1738151836329,0.65330436,102570.0,102560.0,0.2564]
[1738151838333,0.56198522,102570.0,102560.0,0.2564]
[1738151838636,0.65330436,102570.0,102560.0,0.2564]
[1738151838935,0.79919816,102570.0,102560.0,0.2564]
[1738151839336,0.79919816,102570.0,102560.0,0.2935027]
[1738151839525,0.81869703,102570.0,102560.0,0.2935027]
[1738151840833,0.91001617,102570.0,102560.0,0.2371027]
[1738151841037,1.02811617,102570.0,102560.0,0.2371027]
[1738151841840,1.20318873,102570.0,102560.0,0.2371027]
[1738151842232,1.20318873,102570.0,102560.0,0.2]
[1738151843839,1.02811617,102570.0,102560.0,0.2]
[1738151844040,1.02511617,102570.0,102560.0,0.2]
[1738151844241,1.02311617,102570.0,102560.0,0.2]
[1738151845042,0.93179703,102570.0,102560.0,0.2]
[1738151845230,1.02311617,102570.0,102560.0,0.2]
[1738151845635,0.90501617,102570.0,102560.0,0.2]
[1738151845835,0.81369703,102570.0,102560.0,0.2]
[1738151847133,0.81269703,102570.0,102560.0,0.201]
[1738151847636,0.81269703,102570.0,102560.0,0.43328276]
[1738151849232,0.81569703,102570.0,102560.0,0.43328276]
[1738151850145,0.81569703,102570.0,102560.0,0.43228276]
[1738151850540,0.16850189,102570.0,102560.0,0.8844019]
[1738151850843,0.16850189,102570.0,102560.0,0.79308276]
[1738151851040,0.16950189,102570.0,102560.0,0.79308276]
[1738151852041,0.02360809,102570.0,102560.0,0.79308276]
[1738151852436,0.11492723,102570.0,102560.0,0.79308276]
[1738151852837,0.02360809,102570.0,102560.0,0.79308276]
[1738151855842,0.57948409,102570.0,102560.0,0.43228276]
[1738151856243,0.21868409,102570.0,102560.0,0.43228276]
[1738151857045,0.57948409,102570.0,102560.0,0.43228276]
[1738151861248,0.67080323,102570.0,102560.0,0.43228276]
[1738151863547,0.76212237,102570.0,102560.0,0.23718776]
[1738151863850,0.81942237,102570.0,102560.0,0.2]
[1738151868244,0.72810323,102570.0,102560.0,0.395095]
[1738151868446,0.57846453,102570.0,102560.0,0.395095]
[1738151868652,0.57846453,102570.0,102560.0,0.43235393]
[1738151868849,0.38338853,102570.0,102560.0,0.43235393]
[1738151869157,0.21766453,102570.0,102560.0,0.43235393]
[1738151869646,0.15669031,102580.0,102560.0,0.98374548]
[1738151869851,0.14603993,102580.0,102570.0,0.81849514]
[1738151870045,0.14603993,102580.0,102570.0,1.07575407]
[1738151870359,0.05283993,102580.0,102570.0,1.18706234]
[1738151872154,0.3804412,102590.0,102570.0,0.99198634]
[1738151872351,0.3804412,102590.0,102580.0,0.195057]
[1738151872551,0.3804412,102590.0,102580.0,0.415057]
[1738151872947,0.47176034,102590.0,102580.0,0.415057]
[1738151873753,0.47176034,102590.0,102580.0,0.416057]
[1738151874151,0.66679834,102590.0,102580.0,0.416057]
[1738151874651,0.66679834,102590.0,102580.0,0.418057]
[1738151876155,0.68629341,102590.0,102580.0,0.418057]
[1738151877456,0.74679341,102590.0,102580.0,0.418057]
[1738151878645,0.39993627,102590.0,102580.0,0.50937614]
[1738151878850,0.39993627,102590.0,102580.0,0.54656851]
[1738151879047,0.39993627,102590.0,102580.0,0.45524937]
[1738151881255,0.03913627,102590.0,102580.0,0.45524937]
[1738151882754,0.13045541,102590.0,102580.0,0.45524937]
[1738151882963,0.32549341,102590.0,102580.0,0.45524937]
[1738151883361,0.68629341,102590.0,102580.0,0.45524937]
[1738151883764,0.68629341,102590.0,102580.0,0.223]
[1738151887871,0.7737464,102590.0,102580.0,0.223]
[1738151890668,0.89037939,102590.0,102580.0,0.223]
[1738151890868,0.8029264,102590.0,102580.0,0.223]
[1738151892772,0.195057,102580.0,102570.0,0.00014613]
[1738151893074,0.91839528,102580.0,102570.0,0.06014613]
[1738151893869,2.41839528,102580.0,102570.0,0.06014613]
[1738151897079,2.50584955,102580.0,102570.0,0.06014613]
[1738151897775,0.85473041,102580.0,102570.0,0.06014613]
[1738151898481,0.73463041,102580.0,102570.0,0.25522213]
[1738151898878,0.73463041,102580.0,102570.0,0.06014613]
[1738151899582,0.79503041,102580.0,102570.0,0.06014613]
[1738151900172,0.73463041,102580.0,102570.0,0.25522213]
[1738151900389,0.73463041,102580.0,102570.0,0.31612213]
[1738151901084,0.195057,102580.0,102570.0,0.37562213]
[1738151901274,0.28637614,102580.0,102570.0,0.37562213]
[1738151901780,0.09131914,102580.0,102570.0,0.37562213]
[1738151902082,0.09131914,102580.0,102570.0,0.73642213]
[1738151902281,0.09131914,102580.0,102570.0,0.7737981]
[1738151903973,0.10194544,102580.0,102570.0,0.7737981]
[1738151905379,0.65780244,102580.0,102570.0,0.4129981]
[1738151906773,0.65780244,102580.0,102570.0,0.37562213]
[1738151907174,0.65780244,102580.0,102570.0,0.18054613]
[1738151907375,0.74912158,102580.0,102570.0,0.06014613]
[1738151907684,0.86512158,102580.0,102570.0,0.06014613]
[1738151907893,2.27380244,102580.0,102570.0,0.06014613]
[1738151908277,0.77380244,102580.0,102570.0,0.06014613]
[1738151910585,0.86512158,102580.0,102570.0,0.06014613]
[1738151912892,0.65780244,102580.0,102570.0,0.06014613]
[1738151913077,0.65780244,102580.0,102570.0,0.25522213]
[1738151913391,0.65780244,102580.0,102570.0,0.06014613]
[1738151913892,0.65780244,102580.0,102570.0,0.25522213]
[1738151914891,0.65780244,102580.0,102570.0,0.37862213]
[1738151915091,0.5664833,102580.0,102570.0,0.37862213]
[1738151915290,0.45886485,102580.0,102570.0,0.37862213]
[1738151916781,0.45886485,102580.0,102570.0,0.41583835]
[1738151916993,0.44823855,102580.0,102570.0,0.41583835]
[1738151917886,0.53955769,102580.0,102570.0,0.41583835]
[1738151918485,0.45211914,102580.0,102570.0,0.41583835]
[1738151919392,0.3608,102580.0,102570.0,0.41583835]
[1738151920696,0.37128889,102580.0,102570.0,0.41583835]
[1738151921393,0.01048889,102580.0,102570.0,0.77663835]
[1738151921697,0.49125541,102590.0,102580.0,0.195057]
[1738151921897,0.49125541,102590.0,102580.0,0.49127322]
[1738151923097,0.49125541,102590.0,102580.0,0.49227322]
[1738151923792,0.49125541,102590.0,102580.0,0.49327322]
[1738151925991,0.39993627,102590.0,102580.0,0.53327322]
[1738151926198,0.03913627,102590.0,102580.0,0.94539236]
[1738151926497,0.03913627,102590.0,102580.0,1.04287249]
[1738151928498,0.01964542,102590.0,102580.0,1.04287249]
[1738151929298,0.47176456,102590.0,102580.0,0.49327322]
[1738151929707,0.66680256,102590.0,102580.0,0.49327322]
[1738151929895,0.66680256,102590.0,102580.0,0.456057]
[1738151930096,0.66680256,102590.0,102580.0,0.49322802]
[1738151930418,0.66680256,102590.0,102580.0,0.456057]
[1738151930597,0.66680256,102590.0,102580.0,0.49322872]
[1738151930791,0.64731171,102590.0,102580.0,0.49322872]
[1738151932901,0.66680678,102590.0,102580.0,0.49322872]
[1738151933298,0.38044964,102590.0,102580.0,0.58454786]
[1738151933501,0.01964964,102590.0,102580.0,1.00565627]
[1738151933906,0.01964964,102590.0,102580.0,1.04283848]
[1738151935303,0.01964964,102590.0,102580.0,0.95151934]
[1738151940709,0.01964964,102590.0,102580.0,0.59071934]
[1738151941116,0.21468764,102590.0,102580.0,0.59071934]
[1738151941601,0.30600678,102590.0,102580.0,0.49323921]
[1738151941802,0.66680678,102590.0,102580.0,0.43423921]
[1738151950815,0.38044964,102590.0,102580.0,0.43423921]
[1738151951018,0.01964964,102590.0,102580.0,0.59435835]
[1738151951220,0.01964964,102590.0,102580.0,1.05263848]
[1738151951907,0.01964964,102590.0,102580.0,1.10263848]
[1738151952112,0.10708819,102590.0,102580.0,1.05263848]
[1738151952715,0.10708819,102590.0,102580.0,1.07263848]
[1738151952924,0.11673086,102600.0,102580.0,0.98109748]
[1738151953119,0.11673086,102600.0,102590.0,0.78115714]
[1738151953321,0.11673086,102600.0,102590.0,1.03833935]
[1738151953819,0.11673086,102600.0,102590.0,0.94702021]
[1738151954421,0.1079027,102600.0,102590.0,0.94702021]
[1738151954721,0.1079027,102600.0,102590.0,0.96166021]
[1738151955113,0.1079027,102600.0,102590.0,0.96266021]
[1738151955626,0.1079027,102600.0,102590.0,0.60286021]
[1738151955819,0.79029009,102610.0,102600.0,0.195019]
[1738151956021,0.79029009,102610.0,102600.0,0.42220121]
[1738151956927,0.79129009,102610.0,102600.0,0.42220121]
[1738151957228,0.50496895,102610.0,102600.0,0.42220121]
[1738151957426,0.44066895,102610.0,102600.0,0.42220121]
[1738151957829,0.44166895,102610.0,102600.0,0.42220121]
[1738151958024,0.08086895,102610.0,102600.0,0.42220121]
[1738151959526,0.44166895,102610.0,102600.0,0.42220121]
[1738151960027,0.37296895,102610.0,102600.0,0.42220121]
[1738151960427,0.37296895,102610.0,102600.0,0.48600121]
[1738151962630,0.37296895,102610.0,102600.0,0.57732035]
[1738151962829,0.37296895,102610.0,102600.0,0.48600121]
[1738151963815,0.01216895,102610.0,102600.0,0.93812035]
[1738151965522,0.4687027,102630.0,102620.0,0.194981]
[1738151965716,0.75498384,102630.0,102620.0,0.394981]
[1738151966430,0.75498384,102630.0,102620.0,0.43205699]
[1738151967431,0.65408114,102630.0,102620.0,0.43205699]
[1738151968334,0.66630391,102630.0,102620.0,0.394981]
[1738151971030,0.68579138,102630.0,102620.0,0.394981]
[1738151973534,0.68379138,102630.0,102620.0,0.394981]
[1738151973936,0.67779138,102630.0,102620.0,0.394981]
[1738151975638,0.67779138,102630.0,102620.0,0.389981]
[1738151979343,0.39151024,102630.0,102620.0,0.389981]
[1738151980930,0.03071024,102630.0,102620.0,0.455281]
[1738151981129,0.03071024,102630.0,102620.0,0.49232296]
[1738151981525,0.03071024,102630.0,102620.0,0.5836421]
[1738151981838,0.03071024,102630.0,102620.0,0.49232296]
[1738151982429,0.48282938,102630.0,102620.0,0.49232296]
[1738151985142,0.12202938,102630.0,102620.0,0.49232296]
[1738151985342,0.48282938,102630.0,102620.0,0.49232296]
[1738151986541,0.45135317,102630.0,102620.0,0.49232296]
[1738151987344,0.45135317,102630.0,102620.0,0.55216589]
[1738151988743,0.09055317,102630.0,102620.0,0.55216589]
[1738151989745,0.03071024,102630.0,102620.0,0.55216589]
[1738151989947,0.09055317,102630.0,102620.0,0.55216589]
[1738151990146,0.03071024,102630.0,102620.0,0.55216589]
[1738151996244,0.03071024,102630.0,102620.0,0.56212836]
[1738151996445,0.03071024,102630.0,102620.0,0.55216589]
[1738152001957,0.02048747,102630.0,102620.0,0.61200882]
[1738152002144,0.01963171,102640.0,102630.0,0.194962]
[1738152002346,0.01963171,102640.0,102630.0,1.20204689]
[1738152002555,0.01963171,102640.0,102630.0,1.26188982]
[1738152002959,0.01963171,102640.0,102630.0,1.20204689]
[1738152003258,0.01963171,102640.0,102630.0,1.20304689]
[1738152003662,0.01963171,102640.0,102630.0,1.20604689]
[1738152006460,0.38043171,102640.0,102630.0,0.84524689]
[1738152006653,0.38043171,102640.0,102630.0,0.63524689]
[1738152006849,0.57537471,102640.0,102630.0,0.63524689]
[1738152007064,0.38043171,102640.0,102630.0,0.63524689]
[1738152007654,0.57537471,102640.0,102630.0,0.56504689]
[1738152007956,0.64077471,102640.0,102630.0,0.49584689]
[1738152008460,0.01963171,102640.0,102630.0,0.49584689]
[1738152008662,0.01963171,102640.0,102630.0,0.56364689]
[1738152009266,0.01963171,102640.0,102630.0,0.92444689]
[1738152009764,0.01963171,102640.0,102630.0,1.02588329]
[1738152009960,0.01963171,102640.0,102630.0,1.12331593]
[1738152010161,0.01963171,102640.0,102630.0,1.18315886]
[1738152010360,0.01963171,102640.0,102630.0,1.23315886]
[1738152010554,0.03896736,102650.0,102640.0,0.25478593]
[1738152010753,0.03896736,102650.0,102640.0,0.98532789]
[1738152011254,0.03896736,102650.0,102640.0,1.14260346]
[1738152011454,0.03896736,102650.0,102640.0,1.08276053]
[1738152011656,0.03896736,102650.0,102640.0,1.14260346]
[1738152012461,0.03896736,102650.0,102640.0,1.25101538]
[1738152012765,0.03996736,102650.0,102640.0,1.37101538]
[1738152014759,0.03996736,102650.0,102640.0,1.38565538]
[1738152021759,0.03996736,102650.0,102640.0,1.26565538]
[1738152022969,0.03996736,102650.0,102640.0,1.31565538]
[1738152025570,0.03996736,102650.0,102640.0,1.26565538]
[1738152026457,0.03996736,102650.0,102640.0,1.39581245]
[1738152026657,0.03996736,102650.0,102640.0,1.28740053]
[1738152026961,0.03996736,102650.0,102640.0,1.14006053]
[1738152027161,0.10466736,102650.0,102640.0,1.14006053]
[1738152027962,0.10466736,102650.0,102640.0,1.19990346]
[1738152030771,0.03996736,102650.0,102640.0,1.19990346]
[1738152030973,0.03996736,102650.0,102640.0,1.33220346]
[1738152031169,0.03996736,102650.0,102640.0,1.43883317]
[1738152033676,0.03996736,102650.0,102640.0,1.52475317]
[1738152035069,0.03996736,102650.0,102640.0,1.53939317]
[1738152041471,0.03996736,102650.0,102640.0,1.47955024]
[1738152041671,0.03996736,102650.0,102640.0,1.53939317]
[1738152045175,0.03996736,102650.0,102640.0,1.34939317]
[1738152047278,0.03996736,102650.0,102640.0,1.39939317]